fUSD/lending_fUSD_20250930
["ID","MTS","AMOUNT","RATE_DAILY","PERIOD"]
[388514584,1759227058092,-151.0,0.00019485,2]
[388514585,1759227058101,-151.0,0.00019485,2]
[388514586,1759227058111,-151.0,0.00019485,2]
[388514587,1759227058121,-151.0,0.00019485,2]
[388514588,1759227058130,-162.687653,0.00019485,2]
[388514589,1759227058139,-151.0,0.00019485,2]
[388514590,1759227058148,-151.0,0.00019485,2]
[388514591,1759227058157,-296.963121,0.00019485,2]
[388514592,1759227058167,-157.648966,0.00019485,2]
[388514593,1759227058176,-157.648966,0.00019485,2]
[388514594,1759227058185,-157.648966,0.00019485,2]
[388514595,1759227058194,-157.648966,0.00019485,2]
[388514596,1759227058203,-157.648966,0.00019485,2]
[388514597,1759227058212,-157.648966,0.00019485,2]
[388514598,1759227058221,-157.648966,0.00019485,2]
[388514599,1759227058230,-157.648966,0.00019485,2]
[388514600,1759227058239,-2857.74,0.00019485,2]
[388514601,1759227058248,-5027.41,0.00019485,2]
[388514602,1759227058257,-286.453146,0.00019485,2]
[388514603,1759227058267,-286.453146,0.00019485,2]
[388514604,1759227058275,-286.453146,0.00019485,2]
[388514605,1759227058286,-286.453146,0.00019485,2]
[388514606,1759227058296,-286.453146,0.00019485,2]
[388514607,1759227058305,-286.453146,0.00019485,2]
[388514608,1759227058315,-151.0,0.00019485,2]
[388514609,1759227058324,-151.0,0.00019485,2]
[388514610,1759227058333,-2803.93,0.00019485,2]
[388514611,1759227058342,-162.187437,0.00019485,2]
[388514612,1759227058351,-162.187437,0.00019485,2]
[388514613,1759227058364,-162.187437,0.00019485,2]
[388514614,1759227058374,-162.187437,0.00019485,2]
[388514615,1759227058383,-162.187437,0.00019485,2]
[388514616,1759227058392,-162.187437,0.00019485,2]
[388514617,1759227058403,-162.187437,0.00019485,2]
[388514618,1759227058413,-162.187437,0.00019485,2]
[388514619,1759227058423,-286.453146,0.00019485,2]
[388514620,1759227058433,-286.453146,0.00019485,2]
[388514621,1759227058443,-1718.29,0.00019485,2]
[388514622,1759227058452,-151.0,0.00019485,2]
[388514623,1759227058462,-151.0,0.00019485,2]
[388514624,1759227058471,-151.0,0.00019485,2]
[388514625,1759227058481,-151.0,0.00019485,2]
[388514626,1759227058714,-151.0,0.00019485,2]
[388514627,1759227058754,-151.0,0.00019485,2]
[388514628,1759227058765,-4852.04,0.00019485,2]
[388514629,1759227058775,-176.858792,0.00019485,2]
[388514630,1759227058785,-176.858792,0.00019485,2]
[388514631,1759227058795,-2556.78,0.00019485,2]
[388514632,1759227058804,-176.858792,0.00019485,2]
[388514633,1759227058815,-176.858792,0.00019485,2]
[388514634,1759227058824,-176.858792,0.00019485,2]
[388514635,1759227058834,-176.858792,0.00019485,2]
[388514636,1759227058843,-176.858792,0.00019485,2]
[388514637,1759227058853,-176.858792,0.00019485,2]
[388514638,1759227058862,-907.73,0.00019485,2]
[388514639,1759227058872,-500.0,0.00019485,2]
[388514640,1759227058882,-1286.32,0.00019485,2]
[388514641,1759227058892,-151.0,0.00019485,2]
[388514642,1759227058902,-503.98,0.00019485,2]
[388514643,1759227058912,-151.0,0.00019485,2]
[388514644,1759227058922,-793.13,0.00019485,2]
[388514645,1759227058932,-151.0,0.00019485,2]
[388514646,1759227058941,-191.925928,0.00019485,2]
[388514647,1759227058951,-191.925928,0.00019485,2]
[388514648,1759227058960,-191.925928,0.00019485,2]
[388514649,1759227058970,-1633.92,0.00019485,2]
[388514650,1759227058979,-151.916628,0.00019485,2]
[388514651,1759227058990,-151.0,0.00019485,2]
[388514652,1759227058999,-151.0,0.00019485,2]
[388514653,1759227059009,-151.0,0.00019485,2]
[388514654,1759227059019,-517.27,0.00019485,2]
[388514655,1759227059028,-151.0,0.00019485,2]
[388514656,1759227059038,-478.237203,0.00019485,2]
[388514657,1759227059048,-478.237203,0.00019485,2]
[388514658,1759227059059,-3601.18,0.00019485,2]
[388514659,1759227059068,-478.237203,0.00019485,2]
[388514660,1759227059078,-478.237203,0.00019485,2]
[388514661,1759227059087,-441.37,0.00019485,2]
[388514662,1759227059097,-151.0,0.00019485,2]
[388514663,1759227059106,-500.0,0.00019485,2]
[388514664,1759227059115,-217.437658,0.00019485,2]
[388514665,1759227059124,-151.0,0.00019485,2]
[388514666,1759227059134,-500.0,0.00019485,2]
[388514667,1759227059144,-500.0,0.00019485,2]
[388514668,1759227059154,-201.207258,0.00019485,2]
[388514669,1759227059164,-201.207258,0.00019485,2]
[388514670,1759227059173,-201.207258,0.00019485,2]
[388514671,1759227059183,-201.207258,0.00019485,2]
[388514672,1759227059192,-151.0,0.00019485,2]
[388514673,1759227059201,-209.71896,0.00019485,2]
[388514674,1759227059211,-1159.82023,0.00019485,2]
[388514675,1759227059221,-1159.82023,0.00019485,2]
[388514676,1759227059230,-4485.1,0.00019485,2]
[388514677,1759227059240,-1159.82023,0.00019485,2]
[388514678,1759227059249,-1159.82023,0.00019485,2]
[388514679,1759227059260,-3153.56,0.00019485,2]
[388514680,1759227059269,-893.52,0.00019485,2]
[388514681,1759227059279,-893.52,0.00019485,2]
[388514682,1759227059289,-1989.54,0.00019485,2]
[388514683,1759227059299,-1684.3,0.00019485,2]
[388514684,1759227059309,-151.0,0.00019485,2]
[388514685,1759227059319,-151.0,0.00019485,2]
[388514686,1759227059330,-151.0,0.00019485,2]
[388514687,1759227059339,-151.0,0.00019485,2]
[388514688,1759227059348,-151.0,0.00019485,2]
[388514689,1759227059358,-259.599154,0.00019485,2]
[388514690,1759227059372,-785.46,0.00019485,2]
[388514691,1759227059391,-151.0,0.00019485,2]
[388514692,1759227059404,-3206.39,0.00019485,2]
[388514693,1759227059414,-2619.51,0.00019485,2]
[388514694,1759227059424,-225.060142,0.00019485,2]
[388514695,1759227059433,-225.060142,0.00019485,2]
[388514696,1759227059444,-225.060142,0.00019485,2]
[388514697,1759227059453,-151.0,0.00019485,2]
[388514698,1759227059463,-225.060142,0.00019485,2]
[388514699,1759227059473,-151.0,0.00019485,2]
[388514700,1759227059484,-863.03,0.00019485,2]
[388514701,1759227059493,-249.749127,0.00019485,2]
[388514702,1759227059503,-151.0,0.00019485,2]
[388514703,1759227059513,-249.749127,0.00019485,2]
[388514704,1759227059522,-188.212815,0.00019485,2]
[388514705,1759227059532,-249.749127,0.00019485,2]
[388514706,1759227059542,-3106.92,0.00019485,2]
[388514707,1759227059551,-3106.92,0.00019485,2]
[388514708,1759227059561,-249.749127,0.00019485,2]
[388514709,1759227059570,-3386.34,0.00019485,2]
[388514710,1759227059580,-183.932224,0.00019485,2]
[388514711,1759227059590,-1428.53,0.00019485,2]
[388514712,1759227059599,-183.932224,0.00019485,2]
[388514713,1759227059609,-183.932224,0.00019485,2]
[388514714,1759227059619,-159.67613,0.00019485,2]
[388514715,1759227059627,-183.932216,0.00019485,2]
[388514716,1759227059636,-657.766558,0.00019485,2]
[388514717,1759227059645,-657.766558,0.00019485,2]
[388514718,1759227059655,-159.67613,0.00019485,2]
[388514719,1759227059664,-159.67613,0.00019485,2]
[388514720,1759227059673,-657.766558,0.00019485,2]
[388514721,1759227059683,-159.676125,0.00019485,2]
[388514722,1759227059693,-657.76655,0.00019485,2]
[388514723,1759227059702,-3596.71,0.00019485,2]
[388514724,1759227059711,-151.0,0.00019485,2]
[388514725,1759227059720,-151.0,0.00019485,2]
[388514726,1759227059730,-151.0,0.00019485,2]
[388514727,1759227059739,-4827.11,0.00019485,2]
[388514728,1759227059748,-500.0,0.00019485,2]
[388514729,1759227059758,-978.51,0.00019485,2]
[388514730,1759227059768,-1328.79,0.00019485,2]
[388514731,1759227059777,-500.0,0.00019485,2]
[388514732,1759227059787,-500.0,0.00019485,2]
[388514733,1759227059796,-500.0,0.00019485,2]
[388514734,1759227059806,-814.58,0.00019485,2]
[388514735,1759227059815,-3241.09,0.00019485,2]
[388514736,1759227059825,-4034.96,0.00019485,2]
[388514737,1759227059834,-500.0,0.00019485,2]
[388514738,1759227059844,-1373.16,0.00019486,2]
[388514739,1759227059853,-1591.82,0.00019486,2]
[388514740,1759227059862,-1017.75,0.00019486,2]
[388514741,1759227059872,-1027.09,0.00019486,2]
[388514742,1759227059881,-500.0,0.00019486,2]
[388514743,1759227059891,-500.0,0.00019486,2]
[388514744,1759227059901,-500.0,0.00019486,2]
[388514745,1759227059911,-500.0,0.00019486,2]
[388514746,1759227059920,-500.0,0.00019486,2]
[388514747,1759227059932,-500.0,0.00019486,2]
[388514748,1759227059941,-500.0,0.00019486,2]
[388514749,1759227059951,-500.0,0.00019486,2]
[388514750,1759227059960,-500.0,0.00019486,2]
[388514751,1759227059969,-500.0,0.00019486,2]
[388514752,1759227059978,-241.0499683,0.00019486,2]
[388514753,1759227059987,-500.0,0.00019486,2]
[388514754,1759227059996,-500.0,0.00019486,2]
[388514755,1759227060005,-500.0,0.00019486,2]
[388514756,1759227060013,-500.0,0.00019486,2]
[388514757,1759227060022,-500.0,0.00019486,2]
[388514758,1759227060031,-500.0,0.00019486,2]
[388514759,1759227060041,-500.0,0.00019486,2]
[388514760,1759227060051,-500.0,0.00019486,2]
[388514761,1759227060061,-500.0,0.00019486,2]
[388514762,1759227060072,-500.0,0.00019486,2]
[388514763,1759227060081,-500.0,0.00019486,2]
[388514764,1759227060091,-500.0,0.00019486,2]
[388514765,1759227060100,-500.0,0.00019486,2]
[388514766,1759227060110,-500.0,0.00019486,2]
[388514767,1759227060119,-500.0,0.00019486,2]
[388514768,1759227060130,-500.0,0.00019486,2]
[388514769,1759227060139,-500.0,0.00019486,2]
[388514770,1759227060150,-300.0,0.00019486,2]
[388514771,1759227060160,-400.70176072,0.00019486,2]
[388514772,1759227060170,-500.0,0.00019486,2]
[388514773,1759227060179,-500.0,0.00019486,2]
[388514774,1759227060190,-500.0,0.00019486,2]
[388514775,1759227060200,-500.0,0.00019486,2]
[388514776,1759227060210,-500.0,0.00019486,2]
[388514777,1759227060220,-217.19766842,0.00019486,2]
[388514778,1759227060229,-500.0,0.00019486,2]
[388514779,1759227060239,-500.0,0.00019486,2]
[388514780,1759227060248,-500.0,0.00019486,2]
[388514781,1759227060258,-500.0,0.00019486,2]
[388514782,1759227060268,-500.0,0.00019486,2]
[388514783,1759227060278,-500.0,0.00019486,2]
[388514784,1759227060287,-194.77219935,0.00019486,2]
[388514785,1759227060297,-500.0,0.00019486,2]
[388514786,1759227060307,-500.0,0.00019486,2]
[388514787,1759227060318,-500.0,0.00019486,2]
[388514788,1759227060329,-500.0,0.00019486,2]
[388514789,1759227060339,-500.0,0.00019486,2]
[388514790,1759227060349,-500.0,0.00019486,2]
[388514791,1759227060360,-500.0,0.00019486,2]
[388514792,1759227060373,-500.0,0.00019486,2]
[388514793,1759227060383,-500.0,0.00019486,2]
[388514794,1759227060392,-525.8,0.00019486,2]
[388514795,1759227060402,-500.0,0.00019486,2]
[388514796,1759227060411,-500.0,0.00019486,2]
[388514797,1759227060422,-500.0,0.00019486,2]
[388514798,1759227060433,-500.0,0.00019486,2]
[388514799,1759227060443,-500.0,0.00019486,2]
[388514800,1759227060452,-1094.56,0.00019486,2]
[388514802,1759227060462,-500.0,0.00019486,2]
[388514803,1759227060471,-500.0,0.00019486,2]
[388514804,1759227060480,-200.0,0.00019486,2]
[388514805,1759227060491,-500.0,0.00019486,2]
[388514806,1759227060503,-795.03,0.00019486,2]
[388514807,1759227060512,-500.0,0.00019486,2]
[388514808,1759227060522,-500.0,0.00019486,2]
[388514809,1759227060532,-500.0,0.00019486,2]
[388514810,1759227060541,-500.0,0.00019486,2]
[388514811,1759227060551,-2097.47,0.00019486,2]
[388514812,1759227060561,-500.0,0.00019486,2]
[388514813,1759227060571,-400.35977641,0.00019486,2]
[388514815,1759227060580,-500.0,0.00019486,2]
[388514816,1759227060590,-561.58,0.00019486,2]
[388514817,1759227060599,-500.0,0.00019486,2]
[388514818,1759227060609,-500.0,0.00019486,2]
[388514819,1759227060619,-1009.33,0.00019486,2]
[388514820,1759227060629,-500.0,0.00019486,2]
[388514821,1759227060639,-500.0,0.00019486,2]
[388514822,1759227060649,-500.0,0.00019486,2]
[388514823,1759227060658,-500.0,0.00019486,2]
[388514824,1759227060667,-2412.37,0.00019486,2]
[388514825,1759227060677,-500.0,0.00019486,2]
[388514826,1759227060686,-500.0,0.00019486,2]
[388514827,1759227060695,-1048.66,0.00019486,2]
[388514828,1759227060705,-733.11,0.00019486,2]
[388514829,1759227060715,-500.0,0.00019486,2]
[388514830,1759227060724,-500.0,0.00019486,2]
[388514831,1759227060733,-500.0,0.00019486,2]
[388514832,1759227060743,-500.0,0.00019486,2]
[388514833,1759227060752,-500.0,0.00019486,2]
[388514834,1759227060761,-500.0,0.00019486,2]
[388514835,1759227060770,-500.0,0.00019486,2]
[388514836,1759227060780,-500.0,0.00019486,2]
[388514837,1759227060790,-151.0,0.00019486,2]
[388514838,1759227060799,-151.552996,0.00019486,2]
[388514839,1759227060809,-151.0,0.00019486,2]
[388514840,1759227060820,-500.0,0.00019486,2]
[388514841,1759227060829,-500.0,0.00019486,2]
[388514842,1759227060838,-151.0,0.00019486,2]
[388514843,1759227060848,-151.0,0.00019486,2]
[388514844,1759227060858,-500.0,0.00019486,2]
[388514846,1759227061212,-151.0,0.00019486,2]
[388514847,1759227061293,-350.17465227,0.00019486,2]
[388514848,1759227061387,-149.82534773,0.00019486,2]
[388514849,1759227061396,-1046.37839997,0.00019486,2]
[388514850,1759227061411,-1038.54712127,0.00019486,2]
[388514851,1759227061477,-1025.06710056,0.00019486,2]
[388514852,1759227061497,-92.6273782,0.00019486,2]
[388514853,1759227061508,-1614.31,0.00019486,2]
[388514854,1759227061517,-400.00493332,0.00019486,2]
[388514855,1759227061526,-500.0,0.00019486,2]
[388514856,1759227061536,-500.0,0.00019486,2]
[388514857,1759227061545,-527.61,0.00019486,2]
[388514858,1759227061555,-2167.94768848,0.00019486,2]
[388514859,1759227061566,-813.70231152,0.00019486,2]
[388514860,1759227061576,-220.97648848,0.00019486,2]
[388514861,1759227061588,-307.38415914,0.00019486,2]
[388514862,1759227061597,-500.0,0.00019486,2]
[388514863,1759227061606,-500.0,0.00019486,2]
[388514864,1759227061615,-570.71,0.00019486,2]
[388514865,1759227061625,-500.0,0.00019486,2]
[388514866,1759227061635,-441.97946999,0.00019486,2]
[388514867,1759227061645,-500.0,0.00019486,2]
[388514868,1759227061655,-1897.95,0.00019486,2]
[388514869,1759227061665,-500.0,0.00019486,2]
[388514870,1759227061674,-1846.64,0.00019486,2]
[388514871,1759227061683,-778.41,0.00019486,2]
[388514872,1759227061693,-500.0,0.00019486,2]
[388514873,1759227061702,-500.0,0.00019486,2]
[388514874,1759227061712,-500.0,0.00019486,2]
[388514875,1759227061721,-500.0,0.00019486,2]
[388514876,1759227061730,-500.0,0.00019486,2]
[388514877,1759227061740,-500.0,0.00019486,2]
[388514878,1759227061749,-500.0,0.00019486,2]
[388514879,1759227061760,-500.0,0.00019486,2]
[388514880,1759227061770,-2472.73,0.00019486,2]
[388514881,1759227061780,-873.08,0.00019486,2]
[388514882,1759227061790,-500.0,0.00019486,2]
[388514883,1759227061800,-2700.48,0.00019486,2]
[388514884,1759227061810,-151.276952,0.00019486,2]
[388514885,1759227061820,-151.0,0.00019486,2]
[388514886,1759227061830,-1344.28,0.00019486,2]
[388514887,1759227061840,-151.0,0.00019486,2]
[388514888,1759227061849,-151.0,0.00019486,2]
[388514889,1759227061859,-500.0,0.00019486,2]
[388514890,1759227061868,-927.96,0.00019486,2]
[388514891,1759227061879,-500.0,0.00019486,2]
[388514892,1759227061890,-500.0,0.00019486,2]
[388514893,1759227061899,-500.0,0.00019486,2]
[388514894,1759227061909,-500.0,0.00019486,2]
[388514895,1759227061919,-500.23,0.00019486,2]
[388514896,1759227061928,-500.0,0.00019486,2]
[388514897,1759227061938,-500.0,0.00019486,2]
[388514898,1759227061948,-858.28,0.00019486,2]
[388514899,1759227061958,-500.0,0.00019486,2]
[388514900,1759227061968,-500.0,0.00019486,2]
[388514901,1759227061978,-508.57465227,0.00019486,2]
[388514902,1759227061988,-500.0,0.00019486,2]
[388514903,1759227061998,-500.0,0.00019486,2]
[388514904,1759227062008,-966.77,0.00019486,2]
[388514905,1759227062017,-500.0,0.00019486,2]
[388514906,1759227062027,-500.0,0.00019486,2]
[388514907,1759227062036,-500.0,0.00019486,2]
[388514908,1759227062046,-500.0,0.00019486,2]
[388514909,1759227062056,-500.0,0.00019486,2]
[388514910,1759227062068,-500.0,0.00019486,2]
[388514911,1759227062078,-151.0,0.00019486,2]
[388514912,1759227062089,-500.0,0.00019486,2]
[388514913,1759227062099,-151.0,0.00019486,2]
[388514914,1759227062109,-151.0,0.00019486,2]
[388514915,1759227062119,-576.82,0.00019486,2]
[388514916,1759227062130,-151.0,0.00019486,2]
[388514917,1759227062139,-268.89028,0.00019486,2]
[388514918,1759227062150,-500.0,0.00019486,2]
[388514919,1759227062160,-500.0,0.00019486,2]
[388514920,1759227062169,-500.0,0.00019486,2]
[388514921,1759227062179,-500.0,0.00019486,2]
[388514922,1759227062188,-500.0,0.00019486,2]
[388514923,1759227062198,-1021.01,0.00019486,2]
[388514924,1759227062207,-500.0,0.00019486,2]
[388514925,1759227062217,-500.0,0.00019486,2]
[388514926,1759227062226,-516.22,0.00019486,2]
[388514927,1759227062235,-500.0,0.00019486,2]
[388514928,1759227062245,-500.0,0.00019486,2]
[388514929,1759227062255,-500.0,0.00019486,2]
[388514930,1759227062264,-500.0,0.00019486,2]
[388514931,1759227062273,-500.0,0.00019486,2]
[388514932,1759227062282,-1875.75,0.00019486,2]
[388514933,1759227062292,-500.0,0.00019486,2]
[388514934,1759227062301,-500.0,0.00019486,2]
[388514935,1759227062311,-152.310547,0.00019486,2]
[388514936,1759227062322,-1083.22,0.00019486,2]
[388514937,1759227062331,-500.0,0.00019486,2]
[388514938,1759227062340,-526.24169639,0.00019486,2]
[388514939,1759227062350,-500.0,0.00019486,2]
[388514940,1759227062360,-2077.58,0.00019486,2]
[388514941,1759227062374,-675.73,0.00019486,2]
[388514942,1759227062384,-500.0,0.00019486,2]
[388514943,1759227062393,-500.0,0.00019486,2]
[388514944,1759227062403,-541.78,0.00019486,2]
[388514945,1759227062413,-500.0,0.00019486,2]
[388514946,1759227062422,-962.48,0.00019486,2]
[388514947,1759227062432,-1233.49,0.00019486,2]
[388514948,1759227062447,-708.64,0.00019486,2]
[388514949,1759227062457,-1671.01,0.00019486,2]
[388514950,1759227062466,-151.0,0.00019486,2]
[388514951,1759227062478,-152.652222,0.00019486,2]
[388514952,1759227062491,-500.0,0.00019486,2]
[388514953,1759227062501,-500.0,0.00019486,2]
[388514954,1759227062511,-1942.98,0.00019486,2]
[388514955,1759227062520,-1274.74,0.00019486,2]
[388514956,1759227062530,-500.0,0.00019486,2]
[388514957,1759227062539,-500.0,0.00019486,2]
[388514958,1759227062548,-671.0,0.00019486,2]
[388514959,1759227062558,-500.0,0.00019486,2]
[388514960,1759227062568,-500.0,0.00019486,2]
[388514961,1759227062578,-500.0,0.00019486,2]
[388514962,1759227062587,-500.0,0.00019486,2]
[388514963,1759227062597,-1158.39,0.00019486,2]
[388514964,1759227062606,-500.0,0.00019486,2]
[388514965,1759227062615,-500.0,0.00019486,2]
[388514966,1759227062625,-500.0,0.00019486,2]
[388514967,1759227062634,-151.755139,0.00019486,2]
[388514968,1759227062644,-500.0,0.00019486,2]
[388514969,1759227062654,-500.0,0.00019486,2]
[388514970,1759227062663,-500.0,0.00019486,2]
[388514971,1759227062673,-3256.85,0.00019486,2]
[388514972,1759227062684,-500.0,0.00019486,2]
[388514973,1759227062693,-1288.21,0.00019486,2]
[388514974,1759227062703,-151.0,0.00019486,2]
[388514975,1759227062712,-563.31,0.00019486,2]
[388514976,1759227062721,-151.0,0.00019486,2]
[388514977,1759227062731,-151.0,0.00019486,2]
[388514978,1759227062742,-695.02,0.00019486,2]
[388514979,1759227062751,-500.0,0.00019486,2]
[388514980,1759227062761,-1234.45,0.00019486,2]
[388514981,1759227062771,-500.0,0.00019486,2]
[388514982,1759227062781,-1532.29,0.00019486,2]
[388514983,1759227062790,-500.0,0.00019486,2]
[388514984,1759227062799,-500.0,0.00019486,2]
[388514985,1759227062809,-1146.3,0.00019486,2]
[388514986,1759227062819,-500.0,0.00019486,2]
[388514987,1759227062828,-500.0,0.00019486,2]
[388514988,1759227062837,-500.0,0.00019486,2]
[388514989,1759227062847,-500.0,0.00019486,2]
[388514990,1759227062856,-151.0,0.00019486,2]
[388514991,1759227062866,-151.0,0.00019486,2]
[388514992,1759227062875,-500.0,0.00019486,2]
[388514993,1759227062885,-500.0,0.00019486,2]
[388514994,1759227062894,-500.0,0.00019486,2]
[388514995,1759227062903,-500.0,0.00019486,2]
[388514996,1759227062913,-500.0,0.00019486,2]
[388514997,1759227062922,-158.676229,0.00019486,2]
[388514998,1759227062932,-151.0,0.00019486,2]
[388514999,1759227062941,-151.0,0.00019486,2]
[388515000,1759227062951,-151.567069,0.00019486,2]
[388515001,1759227062960,-151.0,0.00019486,2]
[388515002,1759227062969,-2467.5,0.00019486,2]
[388515003,1759227062978,-659.36,0.00019486,2]
[388515004,1759227062987,-526.0,0.00019486,2]
[388515005,1759227062996,-526.0,0.00019486,2]
[388515006,1759227063007,-151.0,0.00019486,2]
[388515007,1759227063016,-151.0,0.00019486,2]
[388515008,1759227063025,-151.0,0.00019486,2]
[388515009,1759227063035,-151.0,0.00019486,2]
[388515010,1759227063044,-500.0,0.00019486,2]
[388515011,1759227063054,-151.0,0.00019486,2]
[388515012,1759227063064,-500.0,0.00019486,2]
[388515013,1759227063074,-999.09,0.00019486,2]
[388515014,1759227063083,-500.01,0.00019486,2]
[388515015,1759227063093,-735.53,0.00019486,2]
[388515016,1759227063103,-500.0,0.00019486,2]
[388515017,1759227063112,-151.0,0.00019486,2]
[388515018,1759227063121,-151.0,0.00019486,2]
[388515019,1759227063132,-151.0,0.00019486,2]
[388515020,1759227063142,-500.0,0.00019486,2]
[388515021,1759227063151,-1049.0,0.00019486,2]
[388515023,1759227063160,-151.0,0.00019486,2]
[388515024,1759227063170,-500.0,0.00019486,2]
[388515025,1759227063179,-500.0,0.00019486,2]
[388515026,1759227063190,-500.0,0.00019486,2]
[388515027,1759227063201,-3236.52,0.00019486,2]
[388515028,1759227063211,-500.0,0.00019486,2]
[388515029,1759227063221,-500.0,0.00019486,2]
[388515030,1759227063232,-500.0,0.00019486,2]
[388515031,1759227063242,-2013.96,0.00019486,2]
[388515032,1759227063253,-615.86,0.00019486,2]
[388515033,1759227063265,-500.0,0.00019486,2]
[388515034,1759227063275,-1126.72,0.00019486,2]
[388515035,1759227063285,-152.0,0.00019486,2]
[388515036,1759227063295,-761.11,0.00019486,2]
[388515037,1759227063305,-500.0,0.00019486,2]
[388515038,1759227063316,-1528.38,0.00019486,2]
[388515039,1759227063325,-1483.93,0.00019486,2]
[388515040,1759227063335,-1483.93,0.00019486,2]
[388515041,1759227063345,-151.0,0.00019486,2]
[388515042,1759227063355,-152.0,0.00019486,2]
[388515043,1759227063368,-500.0,0.00019486,2]
[388515044,1759227063378,-152.0,0.00019486,2]
[388515045,1759227063388,-500.0,0.00019486,2]
[388515046,1759227063398,-151.0,0.00019486,2]
[388515047,1759227063407,-500.0,0.00019486,2]
[388515048,1759227063421,-152.0,0.00019486,2]
[388515049,1759227063434,-500.0,0.00019486,2]
[388515050,1759227063453,-500.0,0.00019486,2]
[388515051,1759227063468,-153.253727,0.00019486,2]
[388515052,1759227063479,-152.0,0.00019486,2]
[388515053,1759227063490,-500.0,0.00019486,2]
[388515054,1759227063501,-152.0,0.00019486,2]
[388515055,1759227063510,-151.0,0.00019486,2]
[388515056,1759227063520,-500.0,0.00019486,2]
[388515057,1759227063530,-152.0,0.00019486,2]
[388515058,1759227063540,-500.0,0.00019486,2]
[388515059,1759227063550,-157.045265,0.00019486,2]
[388515060,1759227063559,-500.0,0.00019486,2]
[388515061,1759227063571,-151.0,0.00019486,2]
[388515062,1759227063580,-500.0,0.00019486,2]
[388515063,1759227063590,-152.0,0.00019486,2]
[388515064,1759227063601,-2301.75,0.00019486,2]
[388515065,1759227063612,-215.901952,0.00019486,2]
[388515066,1759227063623,-151.0,0.00019486,2]
[388515067,1759227063633,-500.0,0.00019486,2]
[388515068,1759227063643,-500.0,0.00019486,2]
[388515069,1759227063654,-500.0,0.00019486,2]
[388515070,1759227063664,-151.0,0.00019486,2]
[388515071,1759227063673,-500.0,0.00019486,2]
[388515072,1759227063683,-500.0,0.00019486,2]
[388515073,1759227063693,-1515.9,0.00019486,2]
[388515074,1759227063702,-500.0,0.00019486,2]
[388515075,1759227063870,-500.0,0.00019486,2]
[388515076,1759227063883,-995.42,0.00019486,2]
[388515077,1759227063893,-500.0,0.00019486,2]
[388515078,1759227063902,-2562.3,0.00019486,2]
[388515079,1759227063911,-500.0,0.00019486,2]
[388515080,1759227063921,-500.0,0.00019486,2]
[388515081,1759227063930,-500.0,0.00019486,2]
[388515082,1759227063940,-500.0,0.00019486,2]
[388515083,1759227063949,-770.28,0.00019486,2]
[388515084,1759227063959,-500.0,0.00019486,2]
[388515085,1759227063969,-500.0,0.00019486,2]
[388515086,1759227063978,-707.85,0.00019486,2]
[388515087,1759227063988,-151.0,0.00019486,2]